bitfinex/quotes_SOLUSD_20251224
["timestamp","ask_amount","ask_price","bid_price","bid_amount"]
[1766556581767,27.88779235,120.93,120.89,0.7]
[1766556582062,23.36978674,120.93,120.89,4.20800561]
[1766556582365,15.1,120.93,120.9,0.7]
[1766556582659,19.61800561,120.97,120.93,0.7]
[1766556582861,4.20800561,120.96,120.93,0.7]
[1766556583244,19.61800561,120.97,120.93,0.7]
[1766556584461,27.88466408,120.97,120.93,0.7]
[1766556584663,15.1,120.97,120.94,0.7]
[1766556584865,12.47405731,120.98,120.94,0.7]
[1766556585870,19.61800561,120.99,120.95,0.7]
[1766556586049,15.1,120.99,120.96,0.7]
[1766556586468,25.12873462,121.01,120.97,0.7]
[1766556586847,25.43873462,121.01,120.97,0.7]
[1766556587045,1.76495477,121.0,120.97,0.7]
[1766556587349,25.43873462,121.01,120.97,0.7]
[1766556589476,25.43901551,121.01,120.97,0.7]
[1766556590844,16.86495477,121.01,120.97,0.7]
[1766556591051,15.1,121.01,120.98,0.7]
[1766556591245,10.02820522,121.02,120.98,0.7]
[1766556591246,1.76495477,121.02,120.98,0.7]
[1766556591456,25.43760821,121.03,120.99,0.7]
[1766556591867,23.67265344,121.03,120.99,0.7]
[1766556592058,25.43760821,121.03,120.99,0.7]
[1766556592461,15.1,121.03,120.99,0.7]
[1766556592693,16.86495477,121.03,120.99,0.7]
[1766556592869,25.12741594,121.03,120.99,0.7]
[1766556594670,23.36246117,121.03,120.99,0.7]
[1766556594854,25.12741594,121.03,120.99,0.7]
[1766556595057,2.07495477,121.02,120.98,0.7]
[1766556595257,1.76495477,121.01,120.98,0.7]
[1766556597384,10.33850822,121.02,120.98,0.7]
[1766556598890,0.31,121.02,120.98,0.7]
[1766556599187,1.76495477,121.02,120.98,0.7]
[1766556599486,10.02809938,121.02,120.98,0.7]
[1766556600288,1.76495477,121.01,120.98,0.7]
[1766556600991,10.33809938,121.02,120.98,0.7]
[1766556601686,25.12756736,121.03,120.99,0.7]
[1766556601866,16.86495477,121.03,120.99,0.7]
[1766556602066,16.86495477,121.03,120.98,1.76495477]
[1766556602067,1.76495477,121.01,120.98,0.7]
[1766556602283,2.07495477,121.01,120.98,0.7]
[1766556603258,10.33817917,121.02,120.98,0.7]
[1766556604369,1.76495477,121.02,120.98,0.7]
[1766556605684,25.4374019,121.03,120.98,1.76495477]
[1766556605886,25.4374019,121.03,120.99,0.7]
[1766556605887,16.86495477,121.03,120.99,0.7]
[1766556607677,25.4374317,121.03,120.99,0.7]
[1766556608196,1.76495477,121.0,120.95,1.76495477]
[1766556608380,1.76495477,120.99,120.96,0.65]
[1766556608875,1.76495477,120.99,120.91,20.67596362]
[1766556608876,1.76495477,120.97,120.94,0.65]
[1766556609278,10.03150502,120.97,120.94,0.65]
[1766556609685,1.76495477,120.97,120.94,0.65]
[1766556610482,10.03158841,120.97,120.94,0.65]
[1766556611897,1.76495477,120.96,120.92,0.65]
[1766556614776,1.76495477,120.95,120.92,0.65]
[1766556614990,2.07495477,120.94,120.89,0.65]
[1766556616205,10.34386184,120.94,120.89,0.65]
[1766556616580,10.34299467,120.95,120.9,0.65]
[1766556616778,10.34299467,120.95,120.91,0.65]
[1766556618102,8.5780399,120.95,120.91,0.65]
[1766556618294,1.76495477,120.94,120.91,0.65]
[1766556619275,8.5780399,120.95,120.91,0.65]
[1766556619476,1.76495477,120.94,120.91,0.65]
[1766556619990,1.76495477,120.95,120.91,0.65]
[1766556621603,23.67670353,120.97,120.91,1.76495477]
[1766556621794,1.76495477,120.99,120.95,0.65]
[1766556622614,1.76495477,120.98,120.95,0.65]
[1766556623110,1.76495477,120.99,120.95,2.41495477]
[1766556623305,8.26400838,121.01,120.94,10.43767296]
[1766556623306,1.76495477,121.01,120.97,0.65]
[1766556624307,1.76495477,120.99,120.95,0.65]
[1766556624491,1.76495477,120.98,120.95,0.65]
[1766556624892,1.76495477,120.99,120.95,0.65]
[1766556626107,8.26582906,120.98,120.95,0.65]
[1766556626313,10.03078383,120.98,120.95,0.65]
[1766556627316,1.76495477,120.96,120.93,0.65]
[1766556628000,2.75914033,120.97,120.93,0.65]
[1766556628192,8.57582906,120.98,120.94,0.65]
[1766556628193,11.02496939,120.98,120.94,0.65]
[1766556628393,17.85914033,120.99,120.95,0.65]
[1766556629005,15.1,120.99,120.96,0.65]
[1766556630405,11.33412511,121.0,120.96,0.65]
[1766556630610,8.57498478,121.0,120.96,0.65]
[1766556630824,2.75914033,121.0,120.96,0.65]
[1766556635614,10.43767296,121.02,120.97,0.67]
[1766556635615,11.02241917,121.02,120.97,0.67]
[1766556635791,11.02241917,121.02,120.98,0.67]
[1766556636509,2.75914033,121.0,120.96,0.67]
[1766556637091,3.06914033,121.0,120.96,0.67]
[1766556637688,11.33394508,121.0,120.96,0.67]
[1766556638017,2.75914033,120.99,120.96,0.67]
[1766556638996,11.33394508,121.0,120.96,0.67]
[1766556640918,2.75914033,120.99,120.96,0.67]
[1766556641135,2.75914033,120.99,120.91,20.67624593]
[1766556641136,2.75914033,120.97,120.9,0.7]
[1766556641297,3.06914033,120.92,120.87,0.7]
[1766556641622,2.75914033,120.9,120.87,0.7]
[1766556641819,2.75914033,120.89,120.85,0.7]
[1766556642520,2.75914033,120.89,120.86,0.7]
[1766556642732,2.75914033,120.89,120.86,11.13767296]
[1766556643608,0.31,120.93,120.88,0.7]
[1766556643923,2.75914033,120.92,120.88,0.7]
[1766556645626,11.02953704,120.92,120.88,0.7]
[1766556646615,2.75914033,120.91,120.88,0.7]
[1766556647509,8.27039671,120.92,120.88,0.7]
[1766556647712,2.75914033,120.91,120.88,0.7]
[1766556648022,11.02953704,120.92,120.88,0.7]
[1766556649334,8.26787928,120.95,120.9,0.7]
[1766556649501,2.75914033,120.94,120.9,0.7]
[1766556649819,11.02701961,120.95,120.91,0.7]
[1766556650831,8.26787928,120.95,120.91,0.7]
[1766556651006,11.02701961,120.95,120.91,0.7]
[1766556651823,2.75914033,120.95,120.91,0.7]
[1766556652029,8.57742262,120.96,120.92,0.7]
[1766556652030,11.33656295,120.96,120.92,0.7]
[1766556660332,2.75914033,120.95,120.92,0.7]
[1766556663039,8.26791516,120.95,120.92,0.7]
[1766556663246,11.33705549,120.95,120.92,0.7]
[1766556663544,11.02705549,120.95,120.92,0.7]
[1766556663840,11.33705549,120.95,120.92,0.7]
[1766556664342,11.02705549,120.95,120.92,0.7]
[1766556664515,2.75914033,120.95,120.92,0.7]
[1766556666122,3.06914033,120.94,120.89,0.7]
[1766556666438,3.06914033,120.93,120.89,0.7]
[1766556666626,2.75914033,120.92,120.89,0.7]
[1766556667022,3.06914033,120.92,120.89,0.7]
[1766556667223,11.33869654,120.93,120.89,0.7]
[1766556670052,23.67867744,120.94,120.9,0.66]
[1766556670341,26.43781777,120.94,120.9,0.66]
[1766556670537,2.75914033,120.93,120.9,0.66]
[1766556670740,23.67867744,120.94,120.9,0.66]
[1766556670918,2.75914033,120.93,120.9,0.66]
[1766556672442,26.43781777,120.94,120.9,0.66]
[1766556673740,23.67867744,120.94,120.9,0.66]
[1766556673940,26.43781777,120.94,120.9,0.66]
[1766556674322,23.67867744,120.94,120.9,0.66]
[1766556674522,26.43781777,120.94,120.9,0.66]
[1766556676150,23.67867744,120.94,120.9,0.66]
[1766556676454,17.85914033,120.94,120.9,0.66]
[1766556678049,26.12771276,120.94,120.9,0.66]
[1766556678343,26.43771276,120.94,120.9,0.66]
[1766556681225,26.12771276,120.94,120.9,0.66]
[1766556681425,15.1,120.94,120.91,0.66]
[1766556681620,15.1,120.94,120.91,3.41914033]
[1766556681847,30.74087643,120.96,120.92,0.66]
[1766556682768,11.02720261,120.95,120.92,0.66]
[1766556683053,11.33720261,120.95,120.91,0.66]
[1766556683555,8.57800965,120.95,120.91,0.66]
[1766556683756,11.33714998,120.95,120.91,0.66]
[1766556686456,2.75914033,120.95,120.91,0.66]
[1766556686662,30.74049992,120.96,120.92,0.66]
[1766556687758,26.43655952,120.96,120.92,0.66]
[1766556687954,25.44350239,120.96,120.92,0.66]
[1766556688958,1.7660832,120.95,120.92,0.66]
[1766556693165,25.44350239,120.96,120.92,0.66]
[1766556693347,0.31,120.92,120.87,0.66]
[1766556693661,1.7660832,120.9,120.87,0.66]
[1766556694054,1.7660832,120.89,120.87,0.66]
[1766556696770,10.03681428,120.91,120.87,0.66]
[1766556697750,10.74767296,120.93,120.88,2.4660832]
[1766556697949,10.34544403,120.93,120.89,0.7]
[1766556698870,1.7660832,120.92,120.89,0.7]
[1766556699167,1.7660832,120.91,120.89,0.7]
[1766556699669,1.7660832,120.91,120.88,0.7]
[1766556701071,10.3465962,120.92,120.88,0.7]
[1766556701274,8.580513,120.92,120.88,0.7]
[1766556701462,10.3465962,120.92,120.88,0.7]
[1766556701658,1.7660832,120.93,120.89,0.7]
[1766556702271,1.7660832,120.94,120.9,0.7]
[1766556702459,1.7660832,120.94,120.9,2.4660832]
[1766556702658,2.0760832,120.95,120.91,0.7]
[1766556702973,10.34402253,120.95,120.91,0.7]
[1766556703559,23.36724528,120.96,120.91,0.7]
[1766556703767,1.7660832,120.95,120.91,0.7]
[1766556706673,25.44332848,120.96,120.92,0.7]
[1766556707470,2.0760832,120.98,120.93,1.7660832]
[1766556707655,2.0760832,120.98,120.94,0.7]
[1766556708483,6.06839963,120.99,120.94,1.7660832]
[1766556708670,2.0760832,121.0,120.96,0.7]
[1766556708977,1.7660832,120.97,120.94,0.7]
[1766556709184,2.0760832,120.97,120.94,0.7]
[1766556709558,2.0760832,120.98,120.94,0.7]
[1766556711165,10.34196453,120.98,120.94,0.7]
[1766556711567,25.44125538,120.99,120.94,1.7660832]
[1766556711761,25.44125538,120.99,120.95,0.7]
[1766556712182,1.7660832,121.0,120.96,0.7]
[1766556713188,10.3413049,120.99,120.96,0.7]
[1766556715787,10.0313049,120.99,120.96,0.7]
[1766556718187,8.2652217,120.99,120.96,0.7]
[1766556718394,10.0313049,120.99,120.96,0.7]
[1766556719593,23.31409903,121.01,120.96,0.7]
[1766556719889,1.7660832,121.0,120.96,0.7]
[1766556720368,19.01207639,121.01,120.96,0.7]
[1766556720369,10.34124457,120.99,120.96,0.7]
[1766556720771,1.7660832,120.98,120.94,11.13767296]
[1766556720987,8.57516137,120.99,120.95,0.7]
[1766556721171,1.7660832,120.98,120.95,0.7]
[1766556721366,10.34124457,120.99,120.95,0.7]
[1766556722076,10.03124457,120.99,120.95,0.7]
[1766556724085,1.7660832,120.99,120.95,0.7]
[1766556724993,10.34132623,120.99,120.95,0.7]
[1766556725598,1.7660832,120.98,120.95,0.7]
[1766556727287,2.0760832,120.98,120.95,0.7]
[1766556727993,1.7660832,120.98,120.95,0.7]
[1766556728180,25.44132623,120.99,120.95,0.7]
[1766556728914,15.1,120.99,120.95,0.7]
[1766556729072,15.1,120.99,120.96,0.72]
[1766556729073,1.7660832,120.99,120.96,0.72]
[1766556729794,1.7660832,120.99,120.94,12.92375616]
[1766556729795,2.0760832,120.99,120.94,12.92375616]
[1766556729999,10.34138247,120.99,120.95,0.72]
[1766556730371,8.57529927,120.99,120.95,0.72]
[1766556730581,10.34138247,120.99,120.95,0.72]
[1766556731884,1.7660832,120.98,120.95,0.72]
[1766556732893,10.34138247,120.99,120.95,0.72]
[1766556733598,1.7660832,120.98,120.95,0.72]
[1766556733795,2.0760832,120.96,120.92,0.72]
[1766556734174,0.31,120.96,120.92,0.72]
[1766556734375,2.0760832,120.96,120.92,0.72]
[1766556734993,10.34334956,120.96,120.92,0.72]
[1766556736492,10.03334956,120.96,120.92,0.72]
[1766556736692,2.0760832,120.95,120.9,2.4860832]
[1766556736885,2.0760832,120.95,120.91,0.72]
[1766556738074,10.34414007,120.95,120.91,0.72]
[1766556738579,25.44414007,120.95,120.91,0.72]
[1766556739097,1.7660832,120.94,120.91,0.72]
[1766556739300,10.03466617,120.94,120.91,0.72]
[1766556739879,1.7660832,120.94,120.91,0.72]
[1766556741598,16.8660832,120.95,120.91,0.72]
[1766556741777,25.13398967,120.95,120.91,0.72]
[1766556742204,15.1,120.95,120.91,1.7660832]
[1766556742389,15.1,120.95,120.92,0.72]
[1766556742590,2.0760832,120.96,120.92,0.72]
[1766556742821,1.7660832,120.95,120.92,0.72]
[1766556746386,23.36674079,120.97,120.92,0.72]
[1766556746696,25.44282399,120.97,120.93,0.72]
[1766556746887,1.7660832,120.96,120.93,0.72]
[1766556747507,23.67674079,120.97,120.93,0.72]
[1766556747696,1.7660832,120.96,120.93,0.72]
[1766556750009,23.67674079,120.97,120.93,0.72]
[1766556750201,2.75948432,120.96,120.93,0.72]
[1766556753516,23.67674079,120.97,120.93,0.72]
[1766556753691,2.75948432,120.98,120.94,0.72]
[1766556754012,11.33487874,120.99,120.95,0.72]
[1766556754213,2.75948432,120.98,120.95,0.72]
[1766556756103,11.02540271,120.98,120.95,0.72]
[1766556756303,8.26591839,120.98,120.95,0.72]
[1766556756713,11.02540271,120.98,120.95,0.72]
[1766556758514,2.75948432,120.99,120.95,0.72]
[1766556759505,2.75948432,120.98,120.95,0.72]
[1766556762623,8.26520749,120.99,120.95,0.72]
[1766556763325,11.02469181,120.99,120.95,0.72]
[1766556764522,2.75948432,120.98,120.95,0.72]
[1766556765530,2.75948432,120.99,120.95,0.72]
[1766556766030,8.57473801,121.0,120.95,0.72]
[1766556766230,2.75948432,120.99,120.95,0.72]
[1766556766609,3.06948432,121.0,120.95,11.02728615]
[1766556766929,3.06948432,121.0,120.96,0.7]
[1766556767516,11.33395562,121.0,120.96,0.7]
[1766556769037,8.5744713,121.0,120.96,0.7]
[1766556769328,11.33395562,121.0,120.96,0.7]
[1766556771336,8.5744713,121.0,120.96,0.7]
[1766556771540,15.1,121.01,120.97,0.7]
[1766556771835,17.85948432,121.01,120.97,0.7]
[1766556772424,18.16948432,121.01,120.97,0.7]
[1766556774921,3.06948432,121.01,120.97,0.7]
[1766556775426,0.31,121.01,120.97,0.7]
[1766556775625,3.06948432,121.01,120.97,0.7]
[1766556776534,0.31,121.01,120.97,0.7]
[1766556776738,3.06948432,121.01,120.97,0.7]
[1766556777032,3.06948432,121.01,120.98,0.7]
[1766556778039,2.75948432,121.01,120.98,0.7]
[1766556778939,8.57353599,121.02,120.98,0.7]
[1766556779143,11.33302031,121.02,120.98,0.7]
[1766556780042,2.75948432,121.02,120.98,0.7]
[1766556780254,18.16948432,121.03,120.99,0.7]
[1766556780764,2.75948432,121.01,120.97,10.43767296]
[1766556780923,0.31,121.0,120.97,11.13767296]
[1766556781252,3.06948432,121.0,120.97,0.7]
[1766556781421,2.75948432,120.99,120.97,0.7]
[1766556781622,2.75948432,120.98,120.95,0.7]
[1766556781965,2.75948432,120.99,120.95,0.7]
[1766556782921,8.57465474,121.0,120.95,0.7]
[1766556783121,2.75948432,120.99,120.95,0.7]
[1766556784045,2.75948432,120.99,120.95,2.75948432]
[1766556784250,0.31,121.0,120.96,0.7]
[1766556784420,0.31,121.0,120.97,0.7]
[1766556784730,11.33326417,121.01,120.97,0.7]
[1766556785351,2.75948432,121.0,120.97,0.7]
[1766556786530,11.02414145,121.0,120.97,0.7]
[1766556786948,8.26465713,121.0,120.97,0.7]
[1766556789554,11.33414145,121.0,120.97,0.7]
[1766556789729,2.75948432,120.99,120.97,0.7]
[1766556790250,2.75948432,120.99,120.94,18.70615099]
[1766556790445,3.06948432,120.99,120.95,0.66]
[1766556792249,2.75948432,120.98,120.95,0.66]
[1766556794058,8.5753067,120.99,120.93,0.66]
[1766556794059,2.75948432,120.97,120.93,0.66]
[1766556794255,8.2653067,120.99,120.93,0.66]
[1766556794256,3.06948432,120.96,120.93,0.66]
[1766556795153,2.75948432,120.96,120.93,0.66]
[1766556796044,3.06948432,120.95,120.92,0.66]
[1766556797371,2.75948432,120.95,120.92,0.66]
[1766556800601,11.02741826,120.95,120.92,0.66]
[1766556801288,2.75948432,120.95,120.92,0.66]
[1766556802495,2.75948432,120.93,120.9,11.09767296]
[1766556802790,2.75948432,120.95,120.91,0.66]
[1766556803300,3.06948432,120.95,120.91,0.66]
[1766556806195,3.06948432,120.93,120.9,11.09767296]
[1766556806497,2.75948432,120.93,120.9,11.09767296]
[1766556806867,2.75948432,120.93,120.91,0.66]
[1766556808001,0.31,120.94,120.91,0.66]
[1766556808198,2.75948432,120.93,120.91,0.66]
[1766556809582,2.75948432,120.93,120.9,10.43767296]
[1766556809787,2.75948432,120.93,120.9,11.09767296]
[1766556809988,1.76683883,120.93,120.9,11.09767296]
[1766556810685,2.07683883,120.92,120.89,0.66]
[1766556811074,2.07683883,120.91,120.87,0.66]
[1766556811563,1.76683883,120.91,120.87,0.66]
[1766556811763,2.07683883,120.92,120.88,0.66]
[1766556812090,10.34683613,120.92,120.88,0.66]
[1766556813768,0.31,120.91,120.88,0.66]
[1766556814179,1.76683883,120.92,120.88,0.66]
[1766556814378,1.76683883,120.91,120.88,0.66]
[1766556816385,2.07683883,120.92,120.88,0.66]
[1766556816993,1.76683883,120.92,120.89,0.67]
[1766556817979,8.26873112,120.94,120.89,0.67]
[1766556818292,2.07683883,120.93,120.89,0.67]
[1766556819986,1.76683883,120.93,120.89,8.2719379]
[1766556820192,2.07683883,120.94,120.9,0.71]
[1766556822470,1.76683883,120.93,120.9,0.71]
[1766556828394,10.43767296,120.95,120.91,0.71]
[1766556828395,1.76683883,120.95,120.91,0.71]
[1766556828598,1.76683883,120.96,120.92,0.71]
[1766556828794,2.07683883,120.96,120.92,0.71]
[1766556830894,1.76683883,120.97,120.93,0.71]
[1766556831386,2.07683883,120.98,120.94,0.71]
[1766556831585,0.31,120.98,120.94,0.71]
[1766556831783,1.76683883,120.98,120.94,0.71]
[1766556831995,2.07683883,120.99,120.95,0.71]
[1766556833197,0.31,120.99,120.95,0.71]
[1766556833386,2.07683883,120.99,120.95,0.71]
[1766556833581,1.76683883,120.99,120.95,0.71]
[1766556834188,23.67466425,121.0,120.95,0.71]
[1766556834388,1.76683883,120.99,120.95,0.71]
[1766556834592,10.34202049,120.99,120.95,0.71]
[1766556835809,1.76683883,120.98,120.95,0.71]
[1766556837083,8.57518166,120.99,120.95,0.71]
[1766556837387,1.76683883,120.98,120.95,0.71]
[1766556841510,10.34202049,120.99,120.95,0.71]
[1766556841709,1.76683883,120.98,120.95,0.71]
[1766556841899,0.31,120.95,120.92,0.71]
[1766556842099,1.76683883,120.94,120.92,0.71]
[1766556842405,1.76683883,120.94,120.9,10.43767296]
[1766556842610,1.76683883,120.94,120.91,0.71]
[1766556842996,0.31,120.95,120.91,0.71]
[1766556843197,10.34441558,120.96,120.92,0.71]
[1766556843392,1.76683883,120.95,120.92,0.71]
[1766556844697,8.57757675,120.96,120.92,0.71]
[1766556844896,1.76683883,120.95,120.92,0.71]
[1766556845096,2.07683883,120.94,120.91,0.71]
[1766556845514,8.26819545,120.95,120.91,0.71]
[1766556845709,1.76683883,120.94,120.91,0.71]
[1766556850525,10.03579922,120.94,120.88,20.47708007]
[1766556850700,0.31,120.93,120.89,0.71]
[1766556851018,10.03579922,120.94,120.89,0.71]
[1766556851226,10.34579922,120.94,120.9,0.71]
[1766556852320,2.07683883,120.94,120.9,0.71]
[1766556852506,2.07683883,120.95,120.91,0.71]
[1766556854494,35.57223024,120.96,120.91,2.47683883]
[1766556854698,35.57223024,120.96,120.92,0.71]
[1766556855729,20.78223024,120.96,120.92,0.71]
[1766556856119,10.34455728,120.96,120.92,0.71]
[1766556858211,10.34343336,120.97,120.92,0.71]
[1766556859520,1.76683883,120.96,120.92,0.71]
[1766556859728,10.34343336,120.97,120.93,0.71]
[1766556863529,10.03411527,120.96,120.91,1.76683883]
[1766556863723,10.03411527,120.96,120.91,0.71]
[1766556863724,1.76683883,120.94,120.91,0.71]
[1766556864330,2.07683883,120.94,120.91,0.71]
[1766556866436,0.31,120.94,120.91,0.71]
[1766556869518,2.07683883,120.94,120.91,0.71]
[1766556871917,3.07054306,120.94,120.91,0.71]
[1766556873130,3.07054306,120.92,120.88,0.71]
[1766556875428,0.31,120.92,120.88,0.71]
[1766556875636,3.07054306,120.92,120.88,0.71]
[1766556879239,2.76054306,120.91,120.88,0.71]
[1766556880548,3.07054306,120.92,120.88,0.71]
[1766556887050,3.07054306,120.89,120.85,0.69]
[1766556888535,2.76054306,120.88,120.85,0.69]
[1766556888950,0.31,120.89,120.85,0.69]
[1766556889137,0.31,120.89,120.85,2.76054306]
[1766556889334,0.31,120.89,120.86,0.69]
[1766556890244,3.07054306,120.89,120.86,0.69]
[1766556890839,0.31,120.89,120.86,0.69]
[1766556892635,3.07054306,120.89,120.86,0.69]
[1766556892831,0.31,120.88,120.85,11.12767296]
[1766556893232,3.07054306,120.89,120.86,0.69]
[1766556895733,2.76054306,120.88,120.86,0.69]
[1766556896931,3.07054306,120.89,120.86,0.69]
[1766556899049,2.76054306,120.88,120.86,0.69]
[1766556899351,3.07054306,120.87,120.84,0.69]
[1766556899530,2.76054306,120.86,120.84,0.69]
[1766556901146,8.27272756,120.88,120.84,0.69]
[1766556901336,2.76054306,120.87,120.84,0.69]
[1766556901840,3.07054306,120.87,120.84,0.69]
[1766556902237,2.76054306,120.87,120.84,0.69]
[1766556903250,3.07054306,120.88,120.84,0.69]
[1766556904039,2.76054306,120.88,120.85,0.69]
[1766556904451,3.07054306,120.89,120.85,0.69]
[1766556904670,2.76054306,120.89,120.85,0.69]
[1766556904867,3.07054306,120.89,120.85,0.69]
[1766556911276,2.76054306,120.88,120.85,0.69]
[1766556911952,2.76054306,120.88,120.84,8.27528711]
[1766556912273,2.76054306,120.86,120.83,0.7]
[1766556912480,3.07054306,120.87,120.83,0.7]
[1766556914479,0.31,120.87,120.83,0.7]
[1766556914678,3.07054306,120.87,120.83,0.7]
[1766556916278,2.76054306,120.87,120.82,11.2372917]
[1766556916474,2.76054306,120.87,120.83,0.7]
[1766556916870,2.76054306,120.87,120.83,8.27588487]
[1766556917180,23.65170988,120.9,120.85,0.7]
[1766556917181,2.76054306,120.89,120.85,0.7]
[1766556918279,11.03252585,120.89,120.85,0.7]
[1766556918575,11.53252585,120.89,120.85,0.2]
[1766556921480,2.76054306,120.88,120.85,0.2]
[1766556922284,3.26054306,120.86,120.83,0.7]
[1766556926191,0.5,120.86,120.83,0.7]
[1766556926394,3.26054306,120.86,120.83,0.7]
[1766556927091,0.5,120.86,120.83,0.7]
[1766556927294,2.76054306,120.84,120.79,0.7]
[1766556927472,8.27422214,120.86,120.79,0.7]
[1766556927473,2.76054306,120.82,120.79,0.7]
[1766556927795,3.26054306,120.83,120.79,0.7]
[1766556928395,11.53686896,120.83,120.79,0.7]
[1766556928779,8.7763259,120.83,120.79,0.7]
[1766556928978,11.53686896,120.83,120.79,0.7]
[1766556930893,2.76054306,120.82,120.79,0.7]
[1766556931073,11.53686896,120.83,120.79,0.7]
[1766556931269,0.5,120.81,120.78,0.2]
[1766556931594,3.26054306,120.81,120.78,0.9]
[1766556931775,18.71764414,120.82,120.79,0.7]
[1766556931978,0.5,120.83,120.8,0.7]
[1766556932398,3.26054306,120.83,120.8,0.7]
[1766556933593,23.89496834,120.85,120.81,3.46054306]
[1766556933795,15.12,120.85,120.82,0.7]
[1766556933984,17.38834665,120.88,120.84,0.7]
[1766556934293,0.5,120.87,120.84,0.7]
[1766556935403,6.57383148,120.91,120.87,0.7]
[1766556935704,2.26834665,120.92,120.88,0.7]
[1766556936401,0.5,120.92,120.89,0.7]
[1766556936608,2.26834665,120.93,120.89,0.7]
[1766556937108,10.53764664,120.93,120.89,0.7]
[1766556937598,8.26929999,120.93,120.89,1.76834665]
[1766556937774,2.26834665,120.92,120.88,0.72]
[1766556938300,2.26834665,120.92,120.85,16.55088193]
[1766556938301,2.26834665,120.9,120.86,0.72]
[1766556938504,2.26834665,120.89,120.86,0.72]
[1766556940300,10.04009863,120.9,120.86,0.72]
[1766556940600,10.54009863,120.9,120.86,0.72]
[1766556940908,8.77175198,120.9,120.86,0.72]
[1766556941205,0.5,120.9,120.86,0.72]
[1766556941595,0.5,120.9,120.86,2.48834665]
[1766556941781,0.5,120.9,120.87,0.67]
[1766556942414,10.5384808,120.92,120.88,0.67]
[1766556942709,12.70601961,120.93,120.89,0.67]
[1766556942913,2.26834665,120.92,120.87,0.67]
[1766556943291,10.53884169,120.92,120.87,0.67]
[1766556943495,1.76834665,120.91,120.87,0.67]
[1766556943684,10.53884169,120.92,120.87,1.76834665]
[1766556943884,0.5,120.92,120.88,2.43834665]
[1766556944183,10.53781117,120.93,120.89,0.67]
[1766556946607,2.26834665,120.92,120.89,0.67]
[1766556948408,1.76834665,120.92,120.89,0.67]
[1766556951708,2.26834665,120.92,120.89,0.67]
[1766556952213,2.26834665,120.92,120.87,1.76834665]
[1766556952420,1.76834665,120.88,120.85,0.66]
[1766556952621,2.26834665,120.88,120.85,0.66]
[1766556952795,0.5,120.88,120.85,0.66]
[1766556955019,2.26834665,120.88,120.85,0.66]
[1766556955801,10.04085222,120.89,120.85,0.66]
[1766556957004,2.26834665,120.88,120.85,0.66]
[1766556957410,1.76834665,120.88,120.85,0.66]
[1766556957813,17.04850934,120.89,120.85,0.66]
[1766556958018,1.76834665,120.88,120.85,0.66]
[1766556959001,8.27250557,120.89,120.85,0.66]
[1766556959196,10.03991219,120.9,120.86,0.68]
[1766556962525,23.8759978,120.91,120.86,12.20601961]
[1766556962526,16.86834665,120.91,120.86,12.20601961]
[1766556962727,1.76834665,120.91,120.87,0.67]
[1766556963313,10.03899446,120.91,120.87,0.67]
[1766556963629,1.76834665,120.91,120.87,0.67]
[1766556963826,10.03783791,120.93,120.87,1.76834665]
[1766556964026,10.53783791,120.93,120.88,0.67]
[1766556964406,10.03783791,120.93,120.88,0.67]
[1766556964607,10.03783791,120.93,120.88,1.76834665]
[1766556964808,10.03783791,120.93,120.89,0.67]
[1766556965008,1.76834665,120.91,120.86,32.68603504]
[1766556965217,1.76834665,120.9,120.87,0.67]